fUSD/lending_fUSD_20251220
["ID","MTS","AMOUNT","RATE_DAILY","PERIOD"]
[399282499,1766239337685,151.0,0.00010482,2]
[399282500,1766239337940,500.0,0.00010482,2]
[399282501,1766239338320,151.0,0.00010482,2]
[399282502,1766239338604,500.0,0.00010482,2]
[399282503,1766239339220,500.0,0.00010482,2]
[399282504,1766239339833,500.0,0.00010482,2]
[399282505,1766239340646,500.0,0.00010482,2]
[399282506,1766239341300,500.0,0.00010482,2]
[399282507,1766239341919,500.0,0.00010482,2]
[399282508,1766239342282,200.0,0.00010482,2]
[399282509,1766239342584,449.15900338,0.00010482,2]
[399282510,1766239342609,50.84099662,0.00010482,2]
[399282511,1766239343186,200.0,0.00010482,2]
[399282512,1766239343228,500.0,0.00010482,2]
[399282513,1766239343855,500.0,0.00010482,2]
[399282514,1766239344519,500.0,0.00010482,2]
[399282515,1766239345329,500.0,0.00010482,2]
[399282516,1766239346024,151.0,0.00010482,2]
[399282517,1766239346110,-8810.37220994,0.00010482,2]
[399282518,1766239346127,-10000.01,0.00010482,2]
[399282519,1766239346173,-10000.01,0.00010482,2]
[399282520,1766239346205,-10000.01,0.00010482,2]
[399282521,1766239346222,-10000.01,0.00010482,2]
[399282522,1766239346238,-10000.01,0.00010482,2]
[399282523,1766239346281,151.0,0.00010482,2]
[399282524,1766239346880,151.0,0.00010482,2]
[399282527,1766239354181,-151.0,0.00010482,2]
[399282528,1766239354212,-151.0,0.00010482,2]
[399282530,1766239354242,-151.0,0.00010482,2]
[399282531,1766239354272,-151.0,0.00010482,2]
[399282532,1766239354302,-151.0,0.00010482,2]
[399282533,1766239354332,-151.0,0.00010482,2]
[399282534,1766239354362,-151.0,0.00010482,2]
[399282535,1766239354392,-151.0,0.00010482,2]
[399282536,1766239354423,-151.0,0.00010482,2]
[399282538,1766239354651,-151.0,0.00010482,2]
[399282539,1766239354661,-6829.01,0.00010482,2]
[399282540,1766239354696,-10000.01,0.00010482,2]
[399282541,1766239354728,-10000.01,0.00010482,2]
[399282542,1766239369836,-151.0,0.00010482,2]
[399282543,1766239369866,-151.0,0.00010482,2]
[399282544,1766239369899,-151.0,0.00010482,2]
[399282545,1766239369929,-151.0,0.00010482,2]
[399282546,1766239369958,-151.0,0.00010482,2]
[399282547,1766239369988,-151.0,0.00010482,2]
[399282548,1766239370018,-151.0,0.00010482,2]
[399282549,1766239380322,-10000.01,0.00010482,2]
[399282550,1766239380338,-10000.01,0.00010482,2]
[399282551,1766239380414,-10000.01,0.00010482,2]
[399282552,1766239380634,-10000.01,0.00010482,2]
[399282553,1766239380819,-10000.01,0.00010482,2]
[399282554,1766239381010,-10000.01,0.00010482,2]
[399282555,1766239381167,-10000.01,0.00010482,2]
[399282556,1766239381304,-10000.01,0.00010482,2]
[399282557,1766239381474,-10000.01,0.00010482,2]
[399282558,1766239381598,-10000.01,0.00010482,2]
[399282571,1766239399953,-150.0,0.00010481,2]
[399282572,1766239399986,-1200.0,0.00010481,2]
[399282573,1766239410524,-1000.0,0.00010481,2]
[399282574,1766239410554,-250.0,0.00010482,2]
[399282578,1766239452372,1000.0,0.00010481,2]
[399282585,1766239487178,2500.0,0.00010382,2]
[399282595,1766239501209,1200.0,0.00010481,2]
[399282596,1766239501347,300.0,0.00010481,2]
[399282598,1766239506694,200.0,0.00010482,2]
[399282606,1766239556855,329.69306254,0.00010482,2]
[399282607,1766239557409,151.0,0.00010482,2]
[399282608,1766239558500,282.59405361,0.00010482,2]
[399282609,1766239559398,242.22347452,0.00010482,2]
[399282611,1766239560257,207.62012102,0.00010482,2]
[399282614,1766239561221,177.96010373,0.00010482,2]
[399282617,1766239562074,152.53723177,0.00010482,2]
[399282618,1766239562114,150.0,0.00010481,2]
[399282621,1766239563090,151.0,0.00010482,2]
[399282627,1766239564963,300.0,0.00010481,2]
[399282632,1766239622419,155.38195281,0.00010481,2]
[399282633,1766239622444,144.61804719,0.00010481,2]
[399282648,1766239641547,151.0,0.00010482,2]
[399282649,1766239642658,151.0,0.00010482,2]
[399282651,1766239643742,151.0,0.00010482,2]
[399282652,1766239644374,151.0,0.00010482,2]
[399282653,1766239644993,151.0,0.00010482,2]
[399282654,1766239645600,151.0,0.00010482,2]
[399282655,1766239646249,151.0,0.00010482,2]
[399282656,1766239646876,151.0,0.00010482,2]
[399282657,1766239647516,151.0,0.00010482,2]
[399282658,1766239648149,151.0,0.00010482,2]
[399282659,1766239648808,151.0,0.00010482,2]
[399282662,1766239662200,-694.38195281,0.00010482,2]
[399282664,1766239662472,-10000.01,0.00010482,2]
[399282665,1766239662732,-10000.01,0.00010482,2]
[399282666,1766239662967,-10000.01,0.00010482,2]
[399282667,1766239663108,-10000.01,0.00010482,2]
[399282668,1766239663248,-10000.01,0.00010482,2]
[399282669,1766239663420,-10000.01,0.00010482,2]
[399282670,1766239663511,-10000.01,0.00010482,2]
[399282671,1766239663647,-10000.01,0.00010482,2]
[399282672,1766239663779,-10000.01,0.00010482,2]
[399282675,1766239685083,1200.0,0.00010481,2]
[399282689,1766239724270,8800.01,0.00010382,2]
[399282690,1766239724297,10000.01,0.00010382,2]
[399282691,1766239724324,10000.01,0.00010382,2]
[399282692,1766239724353,10000.01,0.00010382,2]
[399282693,1766239724380,10000.01,0.00010382,2]
[399282694,1766239724408,10000.01,0.00010382,2]
[399282695,1766239724435,10000.01,0.00010382,2]
[399282696,1766239724461,10000.01,0.00010382,2]
[399282697,1766239724488,10000.01,0.00010382,2]
[399282711,1766239801730,300.0,0.00010381,2]
[399282712,1766239801768,300.0,0.00010381,2]
[399282713,1766239801861,1200.0,0.00010381,2]
[399282714,1766239803256,235.0,0.00010382,2]
[399282720,1766239818730,235.02668057,0.00010282,2]
[399282727,1766239831340,-636150.25939021,0.00010382,2]
[399282728,1766239831352,-58016.64548458,0.00010382,2]
[399282729,1766239831366,-7457.76139348,0.00010382,2]
[399282730,1766239831379,-12560.46462536,0.00010382,2]
[399282731,1766239831391,-441.0,0.00010382,2]
[399282732,1766239831403,-5080.33062886,0.00010382,2]
[399282733,1766239831452,-1217.29571367,0.00010382,2]
[399282734,1766239831465,-7567.32808114,0.00010382,2]
[399282735,1766239831476,-1538.8427499,0.00010382,2]
[399282736,1766239831493,-6880.14962709,0.00010382,2]
[399282737,1766239831506,-1037.1543125,0.00010382,2]
[399282918,1766239837415,-4176.20288896,0.00010382,2]
[399282919,1766239837474,-500.0,0.00010382,2]
[399282920,1766239837486,-100798.05956249,0.00010382,2]
[399282921,1766239837498,-2578.60560507,0.00010382,2]
[399282922,1766239837510,-10618.21986627,0.00010382,2]
[399282923,1766239837522,-7967.72470494,0.00010382,2]
[399282924,1766239837534,-15120.03553679,0.00010382,2]
[399282925,1766239837546,-16785.15192604,0.00010382,2]
[399282926,1766239837557,-11642.27815851,0.00010382,2]
[399282927,1766239837570,-3066.39974414,0.00010382,2]
[399282928,1766239837581,-2500.0,0.00010382,2]
[399282929,1766239837591,-250.0,0.00010434,2]
[399282930,1766239837602,-186.90937296,0.00010482,2]
[399282931,1766239837615,-13.09062704,0.00010482,2]
[399282932,1766239837626,-200.0,0.00010485,2]
[399282933,1766239837637,-1000.0,0.00010485,2]
[399282934,1766239837659,-5244.9024,0.00010485,2]
[399282935,1766239837681,-250.0,0.00010506,2]
[399282936,1766239837691,-200.0,0.00010587,2]
[399282937,1766239837701,-200.0,0.00010587,2]
[399282938,1766239837711,-200.0,0.0001059,2]
[399282939,1766239837721,-200.0,0.00010693,2]
[399282940,1766239837731,-200.0,0.00010693,2]
[399282941,1766239837741,-200.0,0.00010696,2]
[399282942,1766239837751,-200.0,0.000108,2]
[399282943,1766239837760,-200.0,0.00010803,2]
[399282944,1766239837770,-200.0,0.00010908,2]
[399282946,1766239837780,-200.0,0.00010911,2]
[399282948,1766239837790,-150.99,0.00010911,2]
[399282950,1766239837800,-167.0,0.00011415,2]
[399282952,1766239837810,-1680.0,0.00011419,2]
[399282970,1766239838291,-250.0,0.0001142,2]
[399282971,1766239838311,-1008.18,0.00011442,2]
[399282972,1766239838326,-405.18,0.00011442,2]
[399282973,1766239838336,-999.99,0.00011442,2]
[399282974,1766239838345,-499.99,0.00011442,2]
[399282975,1766239838355,-9999.99,0.00011442,2]
[399282976,1766239838364,-10414.6,0.00011442,2]
[399282977,1766239838374,-2575.02,0.00011442,2]
[399282978,1766239838383,-150.99,0.00011442,2]
[399282979,1766239838392,-511.66,0.00011442,2]
[399282980,1766239838402,-8126.27137796,0.00011442,2]
[399282981,1766239838414,-1873.71862204,0.00011442,2]
[399282982,1766239838423,-195.0,0.0001153,2]
[399282983,1766239838432,-300.0,0.0001153,2]
[399282984,1766239838442,-300.0,0.0001153,2]
[399282985,1766239838451,-720.0,0.00012561,2]
[399282986,1766239838461,-763.65,0.00012652,2]
[399282987,1766239838470,-6843.21256872,0.00012668,2]
[399282988,1766239838481,-1799.23609852,0.00012668,2]
[399282989,1766239838493,-1479.68159307,0.00012668,2]
[399282992,1766239839479,-151.0,0.00012668,2]
[399282993,1766239839489,-151.0,0.00012668,2]
[399282994,1766239839498,-282.58973969,0.00012668,2]
[399282995,1766239839507,-150.0,0.00012683,2]
[399282996,1766239839517,-1852.42,0.00012771,2]
[399282997,1766239839526,-3181.67504527,0.00012771,2]
[399282998,1766239839538,-6725.39,0.00012771,2]
[399282999,1766239839548,-1093.96846531,0.00012771,2]
[399283000,1766239839559,-1655.35490122,0.00012771,2]
[399283001,1766239839574,-3571.52766994,0.00012771,2]
[399283002,1766239839586,-919.39818052,0.00012771,2]
[399283003,1766239839601,-1639.29573774,0.00012771,2]
[399283004,1766239839612,-97.03797215,0.00012988,2]
[399283005,1766239839795,-14287.24589999,0.00012988,2]
[399283006,1766239839879,-1230.56820083,0.00011099,2]
[399283007,1766239839889,-1472.82612786,0.00012988,2]
[399283008,1766239839899,-235.02668057,0.00013541,2]
[399283009,1766239839908,-208.25,0.0001369,2]
[399283010,1766239839917,-1190.53328699,0.00013692,2]
[399283024,1766239842646,-21956.58671301,0.00013692,2]
[399283025,1766239842656,-225.12077219,0.00013692,2]
[399283026,1766239842665,-151.0,0.00013692,2]
[399283027,1766239842675,-151.0,0.00013692,2]
[399283028,1766239842684,-500.0,0.00013698,2]
[399283029,1766239842694,-500.0,0.00013698,2]
[399283030,1766239842703,-345.1474943,0.00013699,2]
[399283031,1766239842713,-250.0,0.00013718,2]
[399283032,1766239842722,-176.72,0.00013741,2]
[399283033,1766239842731,-500.0,0.00013741,2]
[399283034,1766239842740,-455.0,0.00013808,2]
[399283035,1766239842749,-500.0,0.00014164,2]
[399283036,1766239842759,-500.0,0.00014164,2]
[399283037,1766239842768,-574.12855637,0.00014164,2]
[399283038,1766239842777,-500.0,0.00014164,2]
[399283039,1766239842787,-500.0,0.00014164,2]
[399283040,1766239842796,-500.0,0.00014164,2]
[399283041,1766239842806,-500.0,0.00014164,2]
[399283042,1766239842815,-620.0,0.00014164,2]
[399283043,1766239842824,-500.0,0.00014164,2]
[399283044,1766239842833,-500.0,0.00014164,2]
[399283045,1766239842842,-500.0,0.00014164,2]
[399283046,1766239842852,-500.0,0.00014164,2]
[399283047,1766239842862,-199.72428582,0.00014164,2]
[399283048,1766239842872,-300.0,0.00014164,2]
[399283049,1766239842881,-200.0,0.00014164,2]
[399283050,1766239842890,-207.4,0.00014164,2]
[399283051,1766239842900,-215.0738,0.00014164,2]
[399283052,1766239842909,-223.0315306,0.00014164,2]
[399283053,1766239842918,-231.28369723,0.00014164,2]
[399283054,1766239842927,-239.84119403,0.00014164,2]
[399283056,1766239842936,-350.57095307,0.00014164,2]
[399283058,1766239842946,-1600.0,0.00014314,2]
[399283059,1766239842955,-223.73,0.000144,2]
[399283060,1766239842965,-707.69,0.00014494,2]
[399283062,1766239842974,-78267.76521982,0.000145,2]
[399283064,1766239842984,-595.37131296,0.00014712,2]
[399283066,1766239842993,-553.79,0.00014795,2]
[399283068,1766239843002,-170.64,0.00014795,2]
[399283070,1766239843011,-206.4730507,0.00014986,2]
[399283077,1766239843231,-297.5269493,0.00014986,2]
[399283078,1766239843241,-501.29502757,0.0001506,2]
[399283079,1766239843251,-445.92,0.00015112,2]
[399283080,1766239843260,-1209.44806942,0.00015118,2]
[399283081,1766239843270,-617.40005154,0.0001526,2]
[399283082,1766239843280,-655.0,0.000153,5]
[399283083,1766239843289,-36259.09,0.00015311,2]
[399283084,1766239843299,-1500.0,0.00015311,2]
[399283085,1766239843308,-500.0,0.00015516,2]
[399283086,1766239843318,-311.1,0.00015533,2]
[399283087,1766239843327,-152.25,0.00015616,2]
[399283088,1766239843336,-151.42,0.00015616,2]
[399283089,1766239843346,-151.54,0.00015616,2]
[399283090,1766239843355,-152.5,0.00015616,2]
[399283091,1766239843364,-152.62,0.00015616,2]
[399283092,1766239843374,-152.78,0.00015616,2]
[399283093,1766239843383,-150.33,0.00015616,2]
[399283094,1766239843393,-151.84,0.00015616,2]
[399283095,1766239843401,-150.6,0.00015616,2]
[399283096,1766239843411,-1588.17,0.00015668,2]
[399283097,1766239843420,-1000.0,0.000158,2]
[399283098,1766239843429,-640.24385345,0.00015808,2]
[399283099,1766239843438,-279.1,0.00015928,2]
[399283100,1766239843447,-191.38735328,0.00015973,2]
[399283101,1766239843457,-738.0,0.00015978,2]
[399283102,1766239843467,-3240.0,0.0001598,2]
[399283103,1766239843476,-247.62379945,0.00016046,2]
[399283104,1766239843486,-173.91728075,0.00016072,2]
[399283105,1766239843495,-1335.73,0.00016082,2]
[399283106,1766239843504,-613.199,0.00016082,2]
[399283107,1766239843513,-1857.626,0.00016082,2]
[399283108,1766239843523,-1608.0,0.00016082,2]
[399283109,1766239843532,-2428.0,0.00016082,2]
[399283110,1766239843541,-6528.0,0.00016082,2]
[399283111,1766239843550,-1600.0,0.00016103,2]
[399283112,1766239843560,-10006.0,0.00016145,2]
[399283113,1766239843569,-78489.94,0.00016146,2]
[399283114,1766239843579,-1000.0,0.0001624,2]
[399283115,1766239843588,-663.93287602,0.00016356,2]
[399283116,1766239843597,-1214.0,0.000164,2]
[399283117,1766239843606,-168.0,0.00016402,2]
[399283118,1766239843616,-500.0,0.00016438,2]
[399283119,1766239843625,-194.76595657,0.00016438,2]
[399283120,1766239843635,-600.0,0.00016438,2]
[399283121,1766239843644,-15224.93,0.00016438,2]
[399283122,1766239843653,-673.4,0.00016438,2]
[399283123,1766239843662,-9255.9,0.0001652,2]
[399283124,1766239843671,-150.0,0.00016632,2]
[399283125,1766239843681,-150.0,0.00016632,2]
[399283126,1766239843690,-150.0,0.00016632,2]
[399283127,1766239843699,-150.0,0.00016632,2]
[399283128,1766239843707,-150.144,0.00016632,2]
[399283129,1766239843716,-8088.04316116,0.0001666,2]
[399283130,1766239843726,-150.0,0.00016712,2]
[399283131,1766239843735,-150.0,0.00016712,2]
[399283132,1766239843743,-150.0,0.00016712,2]
[399283133,1766239843752,-150.0,0.00016712,2]
[399283134,1766239843761,-150.0,0.00016712,2]
[399283135,1766239843771,-150.0,0.00016712,2]
[399283136,1766239843780,-150.0,0.00016712,2]
[399283137,1766239843789,-150.0,0.00016712,2]
[399283138,1766239843798,-150.0,0.00016712,2]
[399283139,1766239843808,-500.0,0.00016712,2]
[399283140,1766239843817,-150.0,0.00016712,2]
[399283141,1766239843826,-150.0,0.00016712,2]
[399283142,1766239843834,-150.0,0.00016712,2]
[399283143,1766239843844,-500.0,0.00016712,2]
[399283144,1766239843853,-150.0,0.00016712,2]
[399283145,1766239843862,-225.40367031,0.00016792,2]
[399283146,1766239843871,-235.02668057,0.000168,2]
[399283147,1766239843880,-150.0,0.00016849,2]
[399283148,1766239843889,-150.0,0.00016849,2]
[399283149,1766239843899,-150.0,0.00016849,2]
[399283150,1766239843908,-150.0,0.00016849,2]
[399283151,1766239843917,-150.0,0.00016849,2]
[399283152,1766239843927,-194.17176914,0.00016849,2]
[399283153,1766239843935,-150.0,0.00016849,2]
[399283154,1766239843945,-584.32985892,0.00016849,2]
[399283155,1766239843954,-150.0,0.00016849,2]
[399283156,1766239843963,-500.0,0.00016849,2]
[399283157,1766239843972,-150.0,0.00016849,2]
[399283158,1766239843982,-200.0,0.00016863,2]
[399283159,1766239843991,-200.0,0.00016864,2]
[399283160,1766239844000,-10000.0,0.000169,2]
[399283161,1766239844009,-165.0,0.000169,2]
[399283162,1766239844018,-165.0,0.000169,2]
[399283163,1766239844028,-167.6,0.000169,2]
[399283164,1766239844038,-442.18295394,0.000169,2]
[399283165,1766239844047,-475.64856948,0.000169,2]
[399283166,1766239844057,-181.47081457,0.000169,2]
[399283167,1766239844066,-500.0,0.000169,2]
[399283168,1766239844075,-500.0,0.000169,2]
[399283169,1766239844086,-500.0,0.000169,2]
[399283170,1766239844095,-500.0,0.000169,2]
[399283171,1766239844104,-500.0,0.000169,2]
[399283172,1766239844114,-500.0,0.000169,2]
[399283173,1766239844123,-500.0,0.000169,2]
[399283174,1766239844133,-500.0,0.000169,2]
[399283175,1766239844142,-500.0,0.000169,2]
[399283176,1766239844152,-500.0,0.000169,2]
[399283177,1766239844162,-500.0,0.000169,2]
[399283178,1766239844171,-500.0,0.000169,2]
[399283179,1766239844183,-500.0,0.000169,2]
[399283180,1766239844193,-500.0,0.000169,2]
[399283181,1766239844202,-500.0,0.000169,2]
[399283182,1766239844211,-500.0,0.000169,2]
[399283183,1766239844221,-500.0,0.000169,2]
[399283184,1766239844230,-500.0,0.000169,2]
[399283185,1766239844240,-500.0,0.000169,2]
[399283186,1766239844249,-500.0,0.000169,2]
[399283187,1766239844258,-500.0,0.000169,2]
[399283188,1766239844267,-500.0,0.000169,2]
[399283189,1766239844276,-500.0,0.000169,2]
[399283190,1766239844286,-500.0,0.000169,2]
[399283191,1766239844295,-500.0,0.000169,2]
[399283192,1766239844304,-410.0925731,0.000169,2]
[399283193,1766239844313,-322.6107,0.00016902,2]
[399283194,1766239844322,-642.94,0.00016903,2]
[399283195,1766239844331,-688.49839244,0.00016904,2]
[399283196,1766239844341,-337.46293072,0.0001697,2]
[399283197,1766239844350,-398.53152918,0.0001697,2]
[399283198,1766239844359,-241.1273443,0.00016978,2]
[399283199,1766239844370,-150.0,0.00016986,2]
[399283200,1766239844379,-153.42007769,0.00016986,2]
[399283201,1766239844388,-200.0,0.00016986,2]
[399283202,1766239844397,-150.0,0.00016986,2]
[399283203,1766239844406,-226.0,0.00016986,2]
[399283204,1766239844416,-150.0,0.00016986,2]
[399283205,1766239844425,-600.0,0.00016986,2]
[399283206,1766239844435,-150.0,0.00017,2]
[399283207,1766239844444,-353583.92557719,0.00017,2]
[399283208,1766239844483,-11989.8144285,0.00017,2]
[399283209,1766239844494,-457.28260599,0.00017,2]
[399283220,1766239845684,-1230.56820075,0.00011229,2]
[399283221,1766239845694,-1769.43179925,0.00017,2]
[399283223,1766239845912,-351.5521247,0.00017,2]
[399283242,1766239893352,162.623,0.00010175,2]
[399283243,1766239893400,1885.0,0.00010175,2]
[399283244,1766239899101,210.0016111,0.00010381,2]
[399283245,1766239899413,193.33338585,0.00010381,2]
[399283246,1766239901907,500.0,0.00010381,2]
[399283247,1766239901972,500.0,0.00010381,2]
[399283248,1766239902027,241.86503837,0.00010381,2]
[399283249,1766239921600,300.0,0.00010381,2]
[399283250,1766239921882,300.0,0.00010381,2]
[399283251,1766239922681,150.0,0.00010381,2]
[399283286,1766240101402,1200.0,0.00010381,2]
[399283287,1766240101449,300.0,0.00010381,2]
[399283290,1766240119150,500.0,0.00010381,2]
[399283303,1766240169999,212.248971,0.00010282,2]
[399283306,1766240226427,151.0,0.00010382,2]
[399283307,1766240227098,151.0,0.00010382,2]
[399283309,1766240227728,151.0,0.00010382,2]
[399283312,1766240228346,151.0,0.00010382,2]
[399283315,1766240228981,151.0,0.00010382,2]
[399283317,1766240229600,151.0,0.00010382,2]
[399283319,1766240230241,151.0,0.00010382,2]
[399283320,1766240230863,17.91131311,0.00010382,2]
[399283321,1766240230888,133.08868689,0.00010382,2]
[399283322,1766240231479,151.0,0.00010382,2]
[399283323,1766240232137,151.0,0.00010382,2]
[399283324,1766240233255,202.61910419,0.00010382,2]
[399283325,1766240241061,-500.0,0.00010382,2]
[399283326,1766240242761,500.0,0.00010382,2]
[399283327,1766240243380,500.0,0.00010382,2]
[399283328,1766240253368,-151.0,0.00010382,2]
[399283329,1766240253407,-151.0,0.00010382,2]
[399283330,1766240253442,-151.0,0.00010382,2]
[399283331,1766240253474,-151.0,0.00010382,2]
[399283332,1766240253506,-151.0,0.00010382,2]
[399283333,1766240253538,-151.0,0.00010382,2]
[399283334,1766240253682,-151.0,0.00010382,2]
[399283335,1766240253820,-5248.30220892,0.00010382,2]
[399283336,1766240253835,-10000.01,0.00010382,2]
[399283337,1766240253876,-1069.88399108,0.00010382,2]
[399283338,1766240253915,-7860.24201784,0.00010382,2]
[399283339,1766240254066,-10000.01,0.00010382,2]
[399283340,1766240254317,-151.0,0.00010382,2]
[399283341,1766240254365,-9698.01,0.00010382,2]
[399283342,1766240254703,-10000.01,0.00010382,2]
[399283343,1766240254779,-151.0,0.00010382,2]
[399283344,1766240254788,-9849.01,0.00010382,2]
[399283345,1766240254906,-10000.01,0.00010382,2]
[399283347,1766240263741,-151.0,0.00010382,2]
[399283348,1766240263771,-151.0,0.00010382,2]
[399283349,1766240273085,500.0,0.00010381,2]
[399283350,1766240273148,500.0,0.00010381,2]
[399283351,1766240273201,528.85348563,0.00010381,2]
[399283352,1766240274572,500.0,0.00010282,2]
[399283353,1766240281468,300.0,0.00010381,2]
[399283354,1766240282079,150.0,0.00010381,2]
[399283356,1766240286563,6917.15651437,0.00010282,2]
[399283357,1766240286589,3082.85348563,0.00010282,2]
[399283358,1766240287622,-7521.15651437,0.00010382,2]
[399283359,1766240287849,-10000.01,0.00010382,2]
[399283360,1766240288019,-10000.01,0.00010382,2]
[399283361,1766240288183,-10000.01,0.00010382,2]
[399283362,1766240288366,-10000.01,0.00010382,2]
[399283363,1766240288520,-10000.01,0.00010382,2]
[399283364,1766240288696,-10000.01,0.00010382,2]
[399283365,1766240288819,-10000.01,0.00010382,2]
[399283366,1766240334960,-895.63059252,0.00010382,2]
[399283367,1766240342289,210.0,0.00010381,2]
[399283368,1766240347926,1237.976165,7.945e-05,2]
[399283369,1766240356329,2500.0,0.00010282,2]
[399283370,1766240362658,192.58672553,0.00010381,2]
[399283371,1766240362703,500.0,0.00010381,2]
[399283372,1766240362981,500.0,0.00010381,2]
[399283373,1766240363025,476.3076972,0.00010381,2]
[399283374,1766240363068,500.0,0.00010381,2]
[399283375,1766240363112,500.0,0.00010381,2]
[399283376,1766240363156,500.0,0.00010381,2]
[399283377,1766240363200,500.0,0.00010381,2]
[399283378,1766240363249,500.0,0.00010381,2]
[399283379,1766240363299,91.87822723,0.00010381,2]
[399283380,1766240363327,555.16233647,0.00010381,2]
[399283381,1766240363370,500.0,0.00010381,2]
[399283382,1766240363416,500.0,0.00010381,2]
[399283383,1766240363461,500.0,0.00010381,2]
[399283384,1766240363514,500.0,0.00010381,2]
[399283385,1766240363557,500.0,0.00010381,2]
[399283386,1766240363603,500.0,0.00010381,2]
[399283387,1766240363649,500.0,0.00010381,2]
[399283388,1766240363701,500.0,0.00010381,2]
[399283389,1766240363751,500.0,0.00010381,2]
[399283390,1766240363794,500.0,0.00010381,2]
[399283391,1766240363841,500.0,0.00010381,2]
[399283392,1766240363886,500.0,0.00010381,2]
[399283393,1766240363932,500.0,0.00010381,2]
[399283394,1766240363979,500.0,0.00010381,2]
[399283395,1766240364024,500.0,0.00010381,2]
[399283396,1766240364070,500.0,0.00010381,2]
[399283397,1766240364117,500.0,0.00010381,2]
[399283398,1766240364163,500.0,0.00010381,2]
[399283399,1766240364210,444.84766353,0.00010381,2]
[399283400,1766240364241,55.15233647,0.00010381,2]
[399283401,1766240364312,500.0,0.00010381,2]
[399283402,1766240364369,500.0,0.00010381,2]
[399283403,1766240364424,500.0,0.00010381,2]
[399283404,1766240364483,500.0,0.00010381,2]
[399283405,1766240364535,500.0,0.00010381,2]
[399283406,1766240401409,1200.0,0.00010381,2]
[399283407,1766240401460,300.0,0.00010381,2]
[399283408,1766240403625,500.0,0.00010381,2]
[399283409,1766240403684,500.0,0.00010381,2]
[399283410,1766240403739,500.0,0.00010381,2]
[399283411,1766240403797,500.0,0.00010381,2]
[399283412,1766240403870,500.0,0.00010381,2]
[399283413,1766240404380,500.0,0.00010381,2]
[399283414,1766240404704,500.0,0.00010381,2]
[399283415,1766240404755,500.0,0.00010381,2]
[399283416,1766240404814,500.0,0.00010381,2]
[399283417,1766240404880,500.0,0.00010381,2]
[399283418,1766240404930,500.0,0.00010381,2]
[399283419,1766240404989,444.85766353,0.00010381,2]
[399283420,1766240405022,55.14233647,0.00010381,2]
[399283421,1766240405073,500.0,0.00010381,2]
[399283422,1766240405134,500.0,0.00010381,2]
[399283423,1766240405202,500.0,0.00010381,2]
[399283424,1766240405257,500.0,0.00010381,2]
[399283425,1766240405308,500.0,0.00010381,2]
[399283426,1766240405362,500.0,0.00010381,2]
[399283427,1766240405415,500.0,0.00010381,2]
[399283428,1766240405464,500.0,0.00010381,2]
[399283429,1766240405535,500.0,0.00010381,2]
[399283430,1766240405587,500.0,0.00010381,2]